[Event "Titled Tuesday Blitz March 22 Late 2022"]
[White "Petesch, Gabriel"]
[Black "Kohler, Aran"]
[WhiteFideId "2032465"]
[BlackFideId "1002856"]
[WhiteElo "2374"]
[BlackElo "2282"]
[Result "1-0"]
[Round "04"]
[TimeControl "180+1"]
[Date "2022.03.22"]
[WhiteClock "0:01:14"]
[BlackClock "0:00:05"]

1. Nf3 {[%clk 0:03:00]}  Nc6 {[%clk 0:02:56]} 2. g3 {[%clk 0:03:01]}  e5 {[%clk 0:02:54]} 3. Bg2 {[%clk 0:03:02]}  d5 {[%clk 0:02:52]} 4. O-O {[%clk 0:03:02]}  e4 {[%clk 0:02:52]} 5. Ne1 {[%clk 0:03:02]}  f5 {[%clk 0:02:51]} 6. d3 {[%clk 0:03:02]}  Nf6 {[%clk 0:02:51]} 7. c4 {[%clk 0:03:02]}  dxc4 {[%clk 0:02:47]} 8. Nc3 {[%clk 0:03:00]}  Be6 {[%clk 0:02:42]} 9. Bg5 {[%clk 0:02:58]}  Be7 {[%clk 0:02:41]} 10. dxe4 {[%clk 0:02:57]}  Qxd1 {[%clk 0:02:39]} 11. Rxd1 {[%clk 0:02:58]}  Nxe4 {[%clk 0:02:26]} 12. Nxe4 {[%clk 0:02:57]}  fxe4 {[%clk 0:02:26]} 13. Bxe7 {[%clk 0:02:57]}  Nxe7 {[%clk 0:02:21]} 14. Bxe4 {[%clk 0:02:57]}  c6 {[%clk 0:02:22]} 15. Rd6 {[%clk 0:02:50]}  Bd5 {[%clk 0:02:07]} 16. Bc2 {[%clk 0:02:47]}  Nc8 {[%clk 0:02:03]} 17. Rxd5 {[%clk 0:02:47]}  cxd5 {[%clk 0:02:02]} 18. Nf3 {[%clk 0:02:47]}  Nb6 {[%clk 0:02:01]} 19. Rd1 {[%clk 0:02:25]}  O-O-O {[%clk 0:02:01]} 20. Nd4 {[%clk 0:02:20]}  Rhe8 {[%clk 0:01:41]} 21. Bxh7 {[%clk 0:02:19]}  a6 {[%clk 0:01:30]} 22. h4 {[%clk 0:02:16]}  Kb8 {[%clk 0:01:28]} 23. Kg2 {[%clk 0:02:15]}  Na4 {[%clk 0:01:23]} 24. Rd2 {[%clk 0:02:15]}  b5 {[%clk 0:01:19]} 25. Nc6+ {[%clk 0:02:14]}  Kc7 {[%clk 0:01:18]} 26. Nxd8 {[%clk 0:02:13]}  Rxd8 {[%clk 0:01:19]} 27. h5 {[%clk 0:02:06]}  d4 {[%clk 0:01:18]} 28. g4 {[%clk 0:02:05]}  b4 {[%clk 0:01:11]} 29. g5 {[%clk 0:02:02]}  c3 {[%clk 0:01:11]} 30. bxc3 {[%clk 0:02:01]}  bxc3 {[%clk 0:01:05]} 31. Rd1 {[%clk 0:01:59]}  Nc5 {[%clk 0:00:57]} 32. f4 {[%clk 0:01:53]}  Ne6 {[%clk 0:00:50]} 33. Kg3 {[%clk 0:01:46]}  Kc6 {[%clk 0:00:49]} 34. Be4+ {[%clk 0:01:45]}  Kc5 {[%clk 0:00:49]} 35. Kg4 {[%clk 0:01:40]}  Kb4 {[%clk 0:00:43]} 36. f5 {[%clk 0:01:37]}  Nc5 {[%clk 0:00:43]} 37. Bc2 {[%clk 0:01:37]}  Ka3 {[%clk 0:00:40]} 38. f6 {[%clk 0:01:36]}  gxf6 {[%clk 0:00:39]} 39. g6 {[%clk 0:01:36]}  Kb2 {[%clk 0:00:33]} 40. Bf5 {[%clk 0:01:34]}  d3 {[%clk 0:00:31]} 41. exd3 {[%clk 0:01:30]}  c2 {[%clk 0:00:31]} 42. Rd2 {[%clk 0:01:28]}  Kc3 {[%clk 0:00:29]} 43. Rxc2+ {[%clk 0:01:27]}  Kxc2 {[%clk 0:00:29]} 44. d4+ {[%clk 0:01:28]}  Nd3 {[%clk 0:00:30]} 45. g7 {[%clk 0:01:25]}  Rxd4+ {[%clk 0:00:17]} 46. Kg3 {[%clk 0:01:22]}  Rd8 {[%clk 0:00:17]} 47. h6 {[%clk 0:01:21]}  Kd2 {[%clk 0:00:15]} 48. h7 {[%clk 0:01:19]}  Ne5 {[%clk 0:00:14]} 49. g8=Q {[%clk 0:01:19]}  Rd4 {[%clk 0:00:11]} 50. h8=Q {[%clk 0:01:17]}  Ke3 {[%clk 0:00:08]} 51. Qg4 {[%clk 0:01:15]}  Nxg4 {[%clk 0:00:07]} 52. Bxg4 {[%clk 0:01:15]}  Kd2 {[%clk 0:00:03]} 53. Qxf6 {[%clk 0:01:15]}  Rd3+ {[%clk 0:00:04]} 54. Kf2 {[%clk 0:01:15]}  a5 {[%clk 0:00:05]} 55. Qb2# {[%clk 0:01:14]} 1-0


[Site "https://www.chess.com"]

[Event "Titled Tuesday Blitz March 22 Late 2022"]
[White "Petrova, Irina"]
[Black "Hartikainen, Jarmo"]
[WhiteFideId "14124122"]
[BlackFideId "503134"]
[WhiteElo "1993"]
[BlackElo "2101"]
[Result "1/2-1/2"]
[Round "04"]
[TimeControl "180+1"]
[Date "2022.03.22"]
[WhiteClock "0:00:19"]
[BlackClock "0:00:08"]

1. e4 {[%clk 0:03:00]}  c5 {[%clk 0:02:59]} 2. Nf3 {[%clk 0:03:00]}  Nc6 {[%clk 0:02:59]} 3. Bb5 {[%clk 0:03:00]}  g6 {[%clk 0:02:58]} 4. Bxc6 {[%clk 0:03:00]}  dxc6 {[%clk 0:02:59]} 5. d3 {[%clk 0:02:59]}  Bg4 {[%clk 0:02:58]} 6. Nc3 {[%clk 0:02:58]}  Bg7 {[%clk 0:02:58]} 7. Be3 {[%clk 0:02:58]}  b6 {[%clk 0:02:57]} 8. h3 {[%clk 0:02:55]}  Bxf3 {[%clk 0:02:56]} 9. Qxf3 {[%clk 0:02:55]}  e5 {[%clk 0:02:56]} 10. Qe2 {[%clk 0:02:43]}  Nf6 {[%clk 0:02:53]} 11. Qd2 {[%clk 0:02:42]}  h6 {[%clk 0:02:50]} 12. O-O {[%clk 0:02:41]}  Nd7 {[%clk 0:02:48]} 13. f4 {[%clk 0:02:38]}  Qe7 {[%clk 0:02:45]} 14. a4 {[%clk 0:02:29]}  a5 {[%clk 0:02:39]} 15. Qf2 {[%clk 0:02:11]}  exf4 {[%clk 0:02:21]} 16. Qxf4 {[%clk 0:02:06]}  O-O {[%clk 0:02:13]} 17. Rae1 {[%clk 0:02:03]}  Nf6 {[%clk 0:01:50]} 18. Qh4 {[%clk 0:01:35]}  Nd5 {[%clk 0:01:36]} 19. Qxe7 {[%clk 0:01:32]}  Nxe7 {[%clk 0:01:36]} 20. Bf4 {[%clk 0:01:26]}  Rac8 {[%clk 0:01:12]} 21. e5 {[%clk 0:01:24]}  Nd5 {[%clk 0:01:07]} 22. Bd2 {[%clk 0:01:03]}  Nxc3 {[%clk 0:01:03]} 23. Bxc3 {[%clk 0:01:04]}  Rce8 {[%clk 0:01:01]} 24. Re4 {[%clk 0:01:01]}  Re6 {[%clk 0:01:00]} 25. Rfe1 {[%clk 0:00:58]}  Rfe8 {[%clk 0:01:00]} 26. Kf2 {[%clk 0:00:54]}  h5 {[%clk 0:00:36]} 27. Kf3 {[%clk 0:00:53]}  Kh7 {[%clk 0:00:35]} 28. g4 {[%clk 0:00:51]}  hxg4+ {[%clk 0:00:19]} 29. hxg4 {[%clk 0:00:51]}  Kg8 {[%clk 0:00:19]} 30. g5 {[%clk 0:00:50]}  Kf8 {[%clk 0:00:18]} 31. Kg4 {[%clk 0:00:35]}  Ke7 {[%clk 0:00:18]} 32. Rf1 {[%clk 0:00:28]}  Rf8 {[%clk 0:00:11]} 33. Rf2 {[%clk 0:00:22]}  Kd7 {[%clk 0:00:10]} 34. Ref4 {[%clk 0:00:22]}  Ke7 {[%clk 0:00:09]} 35. Re4 {[%clk 0:00:22]}  Rh8 {[%clk 0:00:08]} 36. Ref4 {[%clk 0:00:21]}  Rf8 {[%clk 0:00:08]} 37. Re4 {[%clk 0:00:19]} 1/2-1/2


[Site "https://www.chess.com"]

[Event "Titled Tuesday Blitz March 22 Late 2022"]
[White "Pichot, Alan"]
[Black "Paszewski, Mateusz"]
[WhiteFideId "110973"]
[BlackFideId "1141058"]
[WhiteElo "2579"]
[BlackElo "2102"]
[Result "0-1"]
[Round "04"]
[TimeControl "180+1"]
[Date "2022.03.22"]
[WhiteClock "0:01:41"]
[BlackClock "0:00:38"]

1. e4 {[%clk 0:03:00]}  c5 {[%clk 0:02:53]} 2. Nf3 {[%clk 0:03:00]}  d6 {[%clk 0:02:53]} 3. d4 {[%clk 0:03:00]}  cxd4 {[%clk 0:02:54]} 4. Nxd4 {[%clk 0:03:01]}  Nf6 {[%clk 0:02:52]} 5. Nc3 {[%clk 0:03:02]}  g6 {[%clk 0:02:43]} 6. Be3 {[%clk 0:03:01]}  Bg7 {[%clk 0:02:44]} 7. f3 {[%clk 0:03:02]}  O-O {[%clk 0:02:44]} 8. Qd2 {[%clk 0:03:02]}  Nc6 {[%clk 0:02:44]} 9. O-O-O {[%clk 0:03:03]}  d5 {[%clk 0:02:43]} 10. Qe1 {[%clk 0:03:02]}  e5 {[%clk 0:02:43]} 11. Nxc6 {[%clk 0:03:02]}  bxc6 {[%clk 0:02:44]} 12. exd5 {[%clk 0:03:03]}  Nxd5 {[%clk 0:02:45]} 13. Bc4 {[%clk 0:03:03]}  Be6 {[%clk 0:02:45]} 14. Kb1 {[%clk 0:03:04]}  a5 {[%clk 0:02:41]} 15. h4 {[%clk 0:03:03]}  Qc7 {[%clk 0:02:32]} 16. Ne4 {[%clk 0:03:02]}  Nxe3 {[%clk 0:02:27]} 17. Bxe6 {[%clk 0:03:00]}  Nxd1 {[%clk 0:02:24]} 18. Bc4 {[%clk 0:02:59]}  Nxb2 {[%clk 0:02:20]} 19. Kxb2 {[%clk 0:02:58]}  Rab8+ {[%clk 0:02:17]} 20. Ka1 {[%clk 0:02:57]}  Qb6 {[%clk 0:02:12]} 21. Qc3 {[%clk 0:02:57]}  Qb4 {[%clk 0:01:49]} 22. Qb3 {[%clk 0:02:29]}  a4 {[%clk 0:01:45]} 23. c3 {[%clk 0:02:08]}  axb3 {[%clk 0:01:28]} 24. cxb4 {[%clk 0:02:08]}  bxa2 {[%clk 0:01:28]} 25. Bxa2 {[%clk 0:01:58]}  Rxb4 {[%clk 0:01:26]} 26. h5 {[%clk 0:01:59]}  Ra8 {[%clk 0:01:23]} 27. Rd1 {[%clk 0:01:56]}  Rba4 {[%clk 0:01:05]} 28. Rd2 {[%clk 0:01:56]}  Kf8 {[%clk 0:01:04]} 29. hxg6 {[%clk 0:01:55]}  hxg6 {[%clk 0:01:04]} 30. Kb1 {[%clk 0:01:52]}  f5 {[%clk 0:00:56]} 31. Nc5 {[%clk 0:01:52]}  Rb4+ {[%clk 0:00:52]} 32. Bb3 {[%clk 0:01:52]}  Ra5 {[%clk 0:00:48]} 33. Ne6+ {[%clk 0:01:44]}  Ke7 {[%clk 0:00:44]} 34. Kc2 {[%clk 0:01:41]}  Rxb3 {[%clk 0:00:38]} 35. Nxg7 {[%clk 0:01:41]}  Ra2+ {[%clk 0:00:38]} 0-1


[Site "https://www.chess.com"]

[Event "Titled Tuesday Blitz March 22 Late 2022"]
[White "Plotnikov, Pavel"]
[Black "Maksimovic, Bojan"]
[WhiteFideId "4170342"]
[BlackFideId "14408120"]
[WhiteElo "2298"]
[BlackElo "2448"]
[Result "0-1"]
[Round "04"]
[TimeControl "180+1"]
[Date "2022.03.22"]
[WhiteClock "0:00:04"]
[BlackClock "0:00:05"]

1. e4 {[%clk 0:02:59]}  c5 {[%clk 0:02:59]} 2. c3 {[%clk 0:02:59]}  d5 {[%clk 0:02:59]} 3. exd5 {[%clk 0:02:59]}  Qxd5 {[%clk 0:03:00]} 4. d4 {[%clk 0:03:00]}  Nf6 {[%clk 0:02:59]} 5. Nf3 {[%clk 0:03:00]}  Bg4 {[%clk 0:03:00]} 6. Be2 {[%clk 0:03:00]}  e6 {[%clk 0:03:00]} 7. h3 {[%clk 0:03:00]}  Bh5 {[%clk 0:03:00]} 8. Be3 {[%clk 0:02:58]}  cxd4 {[%clk 0:03:00]} 9. cxd4 {[%clk 0:02:58]}  Nc6 {[%clk 0:03:00]} 10. O-O {[%clk 0:02:59]}  Be7 {[%clk 0:03:00]} 11. Nc3 {[%clk 0:02:59]}  Qd6 {[%clk 0:03:01]} 12. Qb3 {[%clk 0:02:59]}  O-O {[%clk 0:03:01]} 13. Rfd1 {[%clk 0:02:59]}  Rfd8 {[%clk 0:03:02]} 14. Rac1 {[%clk 0:02:59]}  Rab8 {[%clk 0:02:38]} 15. d5 {[%clk 0:02:52]}  Nxd5 {[%clk 0:02:18]} 16. Nxd5 {[%clk 0:02:49]}  exd5 {[%clk 0:02:19]} 17. Rc5 {[%clk 0:02:23]}  Bxf3 {[%clk 0:01:01]} 18. Bxf3 {[%clk 0:02:22]}  d4 {[%clk 0:00:57]} 19. Rd5 {[%clk 0:02:06]}  Qe6 {[%clk 0:00:35]} 20. Bxd4 {[%clk 0:01:04]}  Nxd4 {[%clk 0:00:31]} 21. R5xd4 {[%clk 0:00:47]}  Rxd4 {[%clk 0:00:28]} 22. Rxd4 {[%clk 0:00:46]}  Qe1+ {[%clk 0:00:25]} 23. Kh2 {[%clk 0:00:45]}  Qxf2 {[%clk 0:00:23]} 24. Rd7 {[%clk 0:00:38]}  Qc5 {[%clk 0:00:20]} 25. Qd5 {[%clk 0:00:20]}  b6 {[%clk 0:00:06]} 26. Qxc5 {[%clk 0:00:14]}  Bxc5 {[%clk 0:00:07]} 27. Bd5 {[%clk 0:00:13]}  Rf8 {[%clk 0:00:05]} 28. Rxa7 {[%clk 0:00:13]}  g6 {[%clk 0:00:05]} 29. g4 {[%clk 0:00:11]}  Kg7 {[%clk 0:00:06]} 30. g5 {[%clk 0:00:12]}  Be3 {[%clk 0:00:03]} 31. h4 {[%clk 0:00:11]}  h6 {[%clk 0:00:04]} 32. Re7 {[%clk 0:00:10]}  Bc1 {[%clk 0:00:03]} 33. gxh6+ {[%clk 0:00:09]}  Bxh6 {[%clk 0:00:04]} 34. Kg3 {[%clk 0:00:07]}  Kf6 {[%clk 0:00:04]} 35. Rb7 {[%clk 0:00:06]}  Be3 {[%clk 0:00:05]} 36. Kf3 {[%clk 0:00:06]}  Bc5 {[%clk 0:00:05]} 37. b4 {[%clk 0:00:07]}  Bd4 {[%clk 0:00:03]} 38. a4 {[%clk 0:00:07]}  Ke5 {[%clk 0:00:02]} 39. Bxf7 {[%clk 0:00:06]}  Kf6 {[%clk 0:00:02]} 40. Bc4 {[%clk 0:00:05]}  Ke5+ {[%clk 0:00:02]} 41. Kg3 {[%clk 0:00:03]}  Bf2+ {[%clk 0:00:03]} 42. Kg4 {[%clk 0:00:03]}  Rf4+ {[%clk 0:00:03]} 43. Kh3 {[%clk 0:00:03]}  Rxh4+ {[%clk 0:00:03]} 44. Kg2 {[%clk 0:00:04]}  Bd4 {[%clk 0:00:03]} 45. Re7+ {[%clk 0:00:03]}  Kf6 {[%clk 0:00:02]} 46. Re6+ {[%clk 0:00:04]}  Kf5 {[%clk 0:00:03]} 47. Rd6 {[%clk 0:00:03]}  Rg4+ {[%clk 0:00:03]} 48. Kf3 {[%clk 0:00:03]}  Rf4+ {[%clk 0:00:04]} 49. Ke2 {[%clk 0:00:03]}  Be5 {[%clk 0:00:03]} 50. Rd5 {[%clk 0:00:03]}  Rxc4 {[%clk 0:00:03]} 51. Rb5 {[%clk 0:00:03]}  Ke4 {[%clk 0:00:02]} 52. a5 {[%clk 0:00:03]}  bxa5 {[%clk 0:00:02]} 53. bxa5 {[%clk 0:00:04]}  Ra4 {[%clk 0:00:03]} 54. Kd2 {[%clk 0:00:04]}  g5 {[%clk 0:00:03]} 55. Kc2 {[%clk 0:00:04]}  g4 {[%clk 0:00:04]} 56. Kb3 {[%clk 0:00:04]}  Ra1 {[%clk 0:00:04]} 57. Rb4+ {[%clk 0:00:04]}  Bd4 {[%clk 0:00:05]} 58. Ra4 {[%clk 0:00:04]}  Rxa4 {[%clk 0:00:05]} 59. Kxa4 {[%clk 0:00:04]}  g3 {[%clk 0:00:05]} 0-1


[Site "https://www.chess.com"]

[Event "Titled Tuesday Blitz March 22 Late 2022"]
[White "Rabineau, Clement"]
[Black "Do Valle Cardoso, Lucas"]
[WhiteFideId "628891"]
[BlackFideId "2163144"]
[WhiteElo "2237"]
[BlackElo "2331"]
[Result "1-0"]
[Round "04"]
[TimeControl "180+1"]
[Date "2022.03.22"]
[WhiteClock "0:01:06"]
[BlackClock "0:02:26"]

1. e4 {[%clk 0:03:00]}  c5 {[%clk 0:02:58]} 2. c3 {[%clk 0:03:01]}  d5 {[%clk 0:02:58]} 3. exd5 {[%clk 0:03:01]}  Qxd5 {[%clk 0:02:58]} 4. d4 {[%clk 0:03:02]}  cxd4 {[%clk 0:02:59]} 5. cxd4 {[%clk 0:03:02]}  Nc6 {[%clk 0:02:59]} 6. Nf3 {[%clk 0:03:02]}  Nf6 {[%clk 0:03:00]} 7. Nc3 {[%clk 0:03:02]}  Qa5 {[%clk 0:02:58]} 8. d5 {[%clk 0:03:02]}  Nb4 {[%clk 0:02:53]} 9. a3 {[%clk 0:02:07]}  Nbxd5 {[%clk 0:02:27]} 10. Bb5+ {[%clk 0:02:03]}  Bd7 {[%clk 0:02:27]} 11. Bxd7+ {[%clk 0:02:02]}  Kxd7 {[%clk 0:02:27]} 12. b4 {[%clk 0:01:23]}  Qa6 {[%clk 0:02:26]} 13. Nxd5 {[%clk 0:01:17]}  Nxd5 {[%clk 0:02:26]} 14. Qxd5+ {[%clk 0:01:17]}  Ke8 {[%clk 0:02:27]} 15. Ne5 {[%clk 0:01:06]}  e6 {[%clk 0:02:26]} 16. Qd7# {[%clk 0:01:06]} 1-0


[Site "https://www.chess.com"]

[Event "Titled Tuesday Blitz March 22 Late 2022"]
[White "Rastbod, Ali"]
[Black "Grischuk, Alexander"]
[WhiteFideId "12567477"]
[BlackFideId "4126025"]
[WhiteElo "2200"]
[BlackElo "2762"]
[Result "0-1"]
[Round "04"]
[TimeControl "180+1"]
[Date "2022.03.22"]
[WhiteClock "0:00:11"]
[BlackClock "0:00:04"]

1. c4 {[%clk 0:03:00]}  b6 {[%clk 0:02:58]} 2. Nf3 {[%clk 0:02:59]}  Bb7 {[%clk 0:02:58]} 3. g3 {[%clk 0:03:00]}  c5 {[%clk 0:02:48]} 4. Bg2 {[%clk 0:02:59]}  g6 {[%clk 0:02:48]} 5. O-O {[%clk 0:03:00]}  Bg7 {[%clk 0:02:49]} 6. Nc3 {[%clk 0:03:00]}  Nc6 {[%clk 0:02:45]} 7. e3 {[%clk 0:02:57]}  Bxc3 {[%clk 0:02:39]} 8. dxc3 {[%clk 0:02:53]}  f5 {[%clk 0:02:33]} 9. e4 {[%clk 0:02:52]}  fxe4 {[%clk 0:02:23]} 10. Ng5 {[%clk 0:02:50]}  Nf6 {[%clk 0:02:23]} 11. Nxe4 {[%clk 0:02:49]}  Nxe4 {[%clk 0:02:18]} 12. Bxe4 {[%clk 0:02:50]}  Qc7 {[%clk 0:02:07]} 13. Bf4 {[%clk 0:02:49]}  d6 {[%clk 0:02:08]} 14. Qg4 {[%clk 0:02:44]}  Qd7 {[%clk 0:02:08]} 15. Qf3 {[%clk 0:02:26]}  O-O-O {[%clk 0:02:07]} 16. Rfe1 {[%clk 0:02:26]}  Rhf8 {[%clk 0:01:26]} 17. Qg2 {[%clk 0:02:26]}  Rde8 {[%clk 0:01:20]} 18. Rad1 {[%clk 0:02:20]}  Nd8 {[%clk 0:01:20]} 19. Bd5 {[%clk 0:02:13]}  Rf5 {[%clk 0:00:51]} 20. b4 {[%clk 0:01:53]}  Ref8 {[%clk 0:00:44]} 21. Bh6 {[%clk 0:01:47]}  Rxf2 {[%clk 0:00:41]} 22. Bxf8 {[%clk 0:01:30]}  Rxg2+ {[%clk 0:00:41]} 23. Kxg2 {[%clk 0:01:31]}  Ne6 {[%clk 0:00:23]} 24. Bh6 {[%clk 0:01:22]}  Nc7 {[%clk 0:00:21]} 25. Bxb7+ {[%clk 0:01:19]}  Kxb7 {[%clk 0:00:22]} 26. bxc5 {[%clk 0:00:57]}  Qc6+ {[%clk 0:00:21]} 27. Kg1 {[%clk 0:00:51]}  Qxc5+ {[%clk 0:00:22]} 28. Be3 {[%clk 0:00:52]}  Qxc4 {[%clk 0:00:22]} 29. Bf2 {[%clk 0:00:52]}  Qf7 {[%clk 0:00:09]} 30. Re2 {[%clk 0:00:50]}  Kc6 {[%clk 0:00:10]} 31. Rde1 {[%clk 0:00:49]}  Kd7 {[%clk 0:00:09]} 32. Bd4 {[%clk 0:00:47]}  Nb5 {[%clk 0:00:08]} 33. a4 {[%clk 0:00:43]}  Na3 {[%clk 0:00:07]} 34. Rf2 {[%clk 0:00:40]}  Qg8 {[%clk 0:00:07]} 35. Rfe2 {[%clk 0:00:35]}  e5 {[%clk 0:00:07]} 36. Bf2 {[%clk 0:00:35]}  Nc4 {[%clk 0:00:07]} 37. Rd1 {[%clk 0:00:35]}  Kc6 {[%clk 0:00:07]} 38. Re4 {[%clk 0:00:29]}  g5 {[%clk 0:00:07]} 39. g4 {[%clk 0:00:23]}  h6 {[%clk 0:00:07]} 40. Bg3 {[%clk 0:00:24]}  Qe6 {[%clk 0:00:06]} 41. h3 {[%clk 0:00:24]}  Na5 {[%clk 0:00:05]} 42. Re2 {[%clk 0:00:17]}  Nb7 {[%clk 0:00:05]} 43. Red2 {[%clk 0:00:17]}  Qc4 {[%clk 0:00:04]} 44. Rc1 {[%clk 0:00:12]}  Qxa4 {[%clk 0:00:04]} 45. c4 {[%clk 0:00:11]}  Qa3 {[%clk 0:00:04]} 0-1


[Site "https://www.chess.com"]

[Event "Titled Tuesday Blitz March 22 Late 2022"]
[White "Romanchuk, Viktor"]
[Black "Zhou, Qiyu"]
[WhiteFideId "14109271"]
[BlackFideId "505161"]
[WhiteElo "2242"]
[BlackElo "1925"]
[Result "0-1"]
[Round "04"]
[TimeControl "180+1"]
[Date "2022.03.22"]
[WhiteClock "0:00:01"]
[BlackClock "0:00:03"]

1. d4 {[%clk 0:03:00]}  Nf6 {[%clk 0:02:59]} 2. c4 {[%clk 0:03:00]}  e6 {[%clk 0:02:59]} 3. Nc3 {[%clk 0:03:00]}  Bb4 {[%clk 0:02:58]} 4. e3 {[%clk 0:03:00]}  O-O {[%clk 0:02:54]} 5. Ne2 {[%clk 0:03:00]}  b6 {[%clk 0:02:51]} 6. a3 {[%clk 0:02:58]}  Bxc3+ {[%clk 0:02:49]} 7. Nxc3 {[%clk 0:02:59]}  Bb7 {[%clk 0:02:48]} 8. Bd3 {[%clk 0:02:59]}  d5 {[%clk 0:02:46]} 9. cxd5 {[%clk 0:02:56]}  exd5 {[%clk 0:02:47]} 10. O-O {[%clk 0:02:55]}  Nbd7 {[%clk 0:02:47]} 11. b4 {[%clk 0:02:53]}  c5 {[%clk 0:02:42]} 12. bxc5 {[%clk 0:02:49]}  bxc5 {[%clk 0:02:43]} 13. dxc5 {[%clk 0:02:50]}  Nxc5 {[%clk 0:02:44]} 14. Be2 {[%clk 0:02:50]}  Qd7 {[%clk 0:02:12]} 15. Bb2 {[%clk 0:02:44]}  Rfd8 {[%clk 0:02:09]} 16. Nb5 {[%clk 0:02:20]}  Qe7 {[%clk 0:01:50]} 17. Rc1 {[%clk 0:02:03]}  Nfe4 {[%clk 0:01:37]} 18. Qd4 {[%clk 0:01:51]}  f6 {[%clk 0:01:23]} 19. f3 {[%clk 0:01:47]}  Nb3 {[%clk 0:01:21]} 20. Qb4 {[%clk 0:01:12]}  Qxb4 {[%clk 0:01:18]} 21. axb4 {[%clk 0:01:13]}  Nxc1 {[%clk 0:01:18]} 22. Rxc1 {[%clk 0:01:12]}  Nd6 {[%clk 0:01:06]} 23. Rc7 {[%clk 0:00:42]}  Ba6 {[%clk 0:00:57]} 24. Nxd6 {[%clk 0:00:36]}  Rxd6 {[%clk 0:00:43]} 25. b5 {[%clk 0:00:34]}  Bc8 {[%clk 0:00:34]} 26. Bd4 {[%clk 0:00:32]}  Rd7 {[%clk 0:00:29]} 27. Rc3 {[%clk 0:00:21]}  Bb7 {[%clk 0:00:15]} 28. Ra3 {[%clk 0:00:19]}  Kf7 {[%clk 0:00:08]} 29. Rxa7 {[%clk 0:00:17]}  Rxa7 {[%clk 0:00:08]} 30. Bxa7 {[%clk 0:00:18]}  Ke6 {[%clk 0:00:05]} 31. Bd4 {[%clk 0:00:17]}  f5 {[%clk 0:00:04]} 32. h4 {[%clk 0:00:17]}  g6 {[%clk 0:00:05]} 33. Kf2 {[%clk 0:00:17]}  Rd8 {[%clk 0:00:05]} 34. Kg3 {[%clk 0:00:16]}  Ra8 {[%clk 0:00:05]} 35. Bd3 {[%clk 0:00:14]}  Ra3 {[%clk 0:00:05]} 36. Bb1 {[%clk 0:00:13]}  Rb3 {[%clk 0:00:04]} 37. Bc2 {[%clk 0:00:12]}  Rxb5 {[%clk 0:00:05]} 38. Bd3 {[%clk 0:00:10]}  Rb3 {[%clk 0:00:04]} 39. Bf1 {[%clk 0:00:10]}  Rb1 {[%clk 0:00:04]} 40. Bd3 {[%clk 0:00:09]}  Rd1 {[%clk 0:00:04]} 41. Bb5 {[%clk 0:00:09]}  Rd2 {[%clk 0:00:04]} 42. Kh3 {[%clk 0:00:04]}  Bc8 {[%clk 0:00:05]} 43. Kg3 {[%clk 0:00:04]}  Bd7 {[%clk 0:00:05]} 44. Ba6 {[%clk 0:00:04]}  Ra2 {[%clk 0:00:05]} 45. Bd3 {[%clk 0:00:03]}  Kf7 {[%clk 0:00:05]} 46. Bf1 {[%clk 0:00:03]}  Rc2 {[%clk 0:00:04]} 47. Bd3 {[%clk 0:00:03]}  Rc1 {[%clk 0:00:04]} 48. Kf4 {[%clk 0:00:02]}  Ke6 {[%clk 0:00:04]} 49. g3 {[%clk 0:00:02]}  Ba4 {[%clk 0:00:05]} 50. Kg5 {[%clk 0:00:02]}  Rg1 {[%clk 0:00:04]} 51. g4 {[%clk 0:00:01]}  Bd1 {[%clk 0:00:03]} 0-1


[Site "https://www.chess.com"]

[Event "Titled Tuesday Blitz March 22 Late 2022"]
[White "Romero Ruscalleda, Josep"]
[Black "Toncheva, Nadya"]
[WhiteFideId "2231859"]
[BlackFideId "2924056"]
[WhiteElo "2262"]
[BlackElo "1884"]
[Result "1-0"]
[Round "04"]
[TimeControl "180+1"]
[Date "2022.03.22"]
[WhiteClock "0:01:15"]
[BlackClock "0:01:02"]

1. e4 {[%clk 0:03:00]}  d5 {[%clk 0:02:57]} 2. exd5 {[%clk 0:03:00]}  Qxd5 {[%clk 0:02:58]} 3. Nc3 {[%clk 0:03:00]}  Qa5 {[%clk 0:02:57]} 4. Nf3 {[%clk 0:03:00]}  c6 {[%clk 0:02:57]} 5. d4 {[%clk 0:02:58]}  Nf6 {[%clk 0:02:57]} 6. Ne5 {[%clk 0:02:57]}  Bf5 {[%clk 0:02:57]} 7. Bc4 {[%clk 0:02:56]}  e6 {[%clk 0:02:57]} 8. O-O {[%clk 0:02:55]}  Nbd7 {[%clk 0:02:58]} 9. Re1 {[%clk 0:02:52]}  Bd6 {[%clk 0:02:58]} 10. Bb3 {[%clk 0:02:47]}  Nxe5 {[%clk 0:02:51]} 11. dxe5 {[%clk 0:02:47]}  Bxe5 {[%clk 0:02:51]} 12. Bg5 {[%clk 0:02:41]}  O-O {[%clk 0:02:49]} 13. Qe2 {[%clk 0:02:37]}  Bxc3 {[%clk 0:02:46]} 14. bxc3 {[%clk 0:02:37]}  Qxc3 {[%clk 0:02:40]} 15. h3 {[%clk 0:02:37]}  h6 {[%clk 0:02:38]} 16. Bf4 {[%clk 0:02:35]}  Nd5 {[%clk 0:02:34]} 17. Be5 {[%clk 0:02:35]}  Qa5 {[%clk 0:02:33]} 18. c4 {[%clk 0:02:18]}  Nb4 {[%clk 0:02:25]} 19. Bc3 {[%clk 0:02:16]}  Qb6 {[%clk 0:02:23]} 20. g4 {[%clk 0:02:09]}  Bh7 {[%clk 0:02:15]} 21. Qe5 {[%clk 0:02:09]}  f6 {[%clk 0:02:13]} 22. Qxe6+ {[%clk 0:02:07]}  Kh8 {[%clk 0:02:13]} 23. Rad1 {[%clk 0:01:59]}  Rad8 {[%clk 0:02:11]} 24. c5 {[%clk 0:01:44]}  Qxc5 {[%clk 0:01:57]} 25. Rxd8 {[%clk 0:01:23]}  Rxd8 {[%clk 0:01:56]} 26. Bxf6 {[%clk 0:01:22]}  Nd3 {[%clk 0:01:09]} 27. Bxg7+ {[%clk 0:01:15]}  Kxg7 {[%clk 0:01:02]} 28. Qf7+ {[%clk 0:01:15]}  Kh8 {[%clk 0:01:02]} 29. Qf6# {[%clk 0:01:15]} 1-0


[Site "https://www.chess.com"]

[Event "Titled Tuesday Blitz March 22 Late 2022"]
[White "Rosen, Eric"]
[Black "Daianu, Cristian-Clement"]
[WhiteFideId "2032562"]
[BlackFideId "1208926"]
[WhiteElo "2362"]
[BlackElo "2159"]
[Result "1-0"]
[Round "04"]
[TimeControl "180+1"]
[Date "2022.03.22"]
[WhiteClock "0:00:41"]
[BlackClock "0:00:14"]

1. d4 {[%clk 0:03:00]}  f5 {[%clk 0:02:59]} 2. Bf4 {[%clk 0:03:00]}  Nf6 {[%clk 0:02:57]} 3. e3 {[%clk 0:03:00]}  e6 {[%clk 0:02:57]} 4. Nf3 {[%clk 0:02:56]}  b6 {[%clk 0:02:57]} 5. c4 {[%clk 0:02:48]}  Be7 {[%clk 0:02:54]} 6. Nc3 {[%clk 0:02:47]}  O-O {[%clk 0:02:53]} 7. Qb3 {[%clk 0:02:42]}  Bb7 {[%clk 0:02:45]} 8. Be2 {[%clk 0:02:42]}  c5 {[%clk 0:02:42]} 9. dxc5 {[%clk 0:02:37]}  Bxc5 {[%clk 0:02:41]} 10. Rd1 {[%clk 0:02:36]}  Kh8 {[%clk 0:02:34]} 11. O-O {[%clk 0:02:33]}  Ne4 {[%clk 0:02:28]} 12. a3 {[%clk 0:02:22]}  Nc6 {[%clk 0:02:25]} 13. Nxe4 {[%clk 0:01:56]}  fxe4 {[%clk 0:02:24]} 14. Ng5 {[%clk 0:01:53]}  Qe7 {[%clk 0:02:10]} 15. Nxe4 {[%clk 0:01:47]}  Rxf4 {[%clk 0:00:52]} 16. exf4 {[%clk 0:01:39]}  Nd4 {[%clk 0:00:51]} 17. Qd3 {[%clk 0:01:26]}  Rf8 {[%clk 0:00:51]} 18. g3 {[%clk 0:00:52]}  e5 {[%clk 0:00:34]} 19. b4 {[%clk 0:00:49]}  Nxe2+ {[%clk 0:00:27]} 20. Qxe2 {[%clk 0:00:49]}  exf4 {[%clk 0:00:27]} 21. bxc5 {[%clk 0:00:47]}  Qxe4 {[%clk 0:00:18]} 22. Qxe4 {[%clk 0:00:46]}  Bxe4 {[%clk 0:00:19]} 23. cxb6 {[%clk 0:00:46]}  axb6 {[%clk 0:00:14]} 24. Rxd7 {[%clk 0:00:41]} 1-0


[Site "https://www.chess.com"]